bitfinex-derivatives/quotes_BTCF0:USTF0_20241221
["timestamp","ask_amount","ask_price","bid_price","bid_amount"]
[1734792172063,0.009,97296.0,97295.0,0.001]
[1734792172664,0.009,97296.0,97295.0,0.0438]
[1734792172868,0.015,97296.0,97294.0,0.001]
[1734792173066,0.006,97296.0,97294.0,0.001]
[1734792173265,0.051402,97295.0,97294.0,0.001]
[1734792174478,0.051405,97290.0,97287.0,0.134606]
[1734792175662,0.051406,97289.0,97287.0,0.0832]
[1734792175862,0.051406,97289.0,97287.0,0.0404]
[1734792177765,0.060406,97289.0,97287.0,0.0404]
[1734792179661,0.065406,97289.0,97287.0,0.0404]
[1734792179860,0.014,97289.0,97275.0,0.0424]
[1734792180066,0.051412,97277.0,97276.0,0.051412]
[1734792180379,0.051419,97263.0,97256.0,0.36789977]
[1734792180566,0.051419,97263.0,97256.0,0.36661977]
[1734792181266,0.051419,97263.0,97256.0,0.41804277]
[1734792181462,0.052419,97263.0,97262.0,0.30814012]
[1734792181667,0.052419,97263.0,97262.0,0.001]
[1734792182977,0.051426,97251.0,97250.0,0.00154234]
[1734792183877,0.01022036,97263.0,97260.0,0.051421]
[1734792184063,0.412218,97265.0,97260.0,0.051421]
[1734792184272,0.3608,97265.0,97263.0,0.051419]
[1734792184462,0.412219,97265.0,97263.0,0.051419]
[1734792184866,0.37068683,97265.0,97250.0,0.00454234]
[1734792185067,0.051425,97252.0,97250.0,0.003]
[1734792185665,0.051425,97252.0,97250.0,0.001]
[1734792185871,0.051432,97240.0,97239.0,7.658e-05]
[1734792187378,0.051432,97240.0,97239.0,0.05250858]
[1734792187379,0.001,97240.0,97239.0,0.05250858]
[1734792188079,0.09201767,97246.0,97245.0,0.051429]
[1734792188778,0.00992439,97251.0,97249.0,0.051427]
[1734792189081,0.09201767,97254.0,97250.0,0.0434]
[1734792189476,0.051426,97252.0,97250.0,0.0434]
[1734792190177,0.051426,97250.0,97249.0,0.003]
[1734792191581,0.051432,97240.0,97239.0,7.658e-05]
[1734792193283,0.052432,97240.0,97239.0,0.00707658]
[1734792194281,0.06251798,97240.0,97239.0,0.00707658]
[1734792201392,0.06251798,97240.0,97239.0,0.00507658]
[1734792202793,0.06251798,97240.0,97239.0,0.00407658]
[1734792206507,0.15453565,97240.0,97219.0,0.0431]
[1734792206696,0.051442,97220.0,97219.0,0.0431]
[1734792207707,0.051442,97220.0,97219.0,0.0501]
[1734792207903,0.051442,97220.0,97219.0,0.0511]
[1734792207904,0.052442,97220.0,97219.0,0.0511]
[1734792208108,0.052442,97220.0,97219.0,0.008]
[1734792208309,0.06266568,97220.0,97203.0,0.0015431]
[1734792208496,0.051451,97204.0,97203.0,0.0015431]
[1734792208696,0.3608,97210.0,97203.0,0.0015431]
[1734792208904,0.3608,97210.0,97205.0,0.05145]
[1734792209097,0.00210261,97220.0,97205.0,0.3608]
[1734792209302,0.00210261,97220.0,97210.0,0.10105565]
[1734792209506,0.00210261,97220.0,97211.0,0.0454]
[1734792209699,0.00210261,97220.0,97218.0,0.051443]
[1734792210009,0.15336279,97223.0,97214.0,0.3608]
[1734792210406,0.01696279,97223.0,97222.0,0.3608]
[1734792211010,0.0015435,97224.0,97222.0,0.3608]
[1734792211200,0.0015435,97224.0,97223.0,0.051441]
[1734792212709,0.0025435,97224.0,97223.0,0.051441]
[1734792213707,0.0025435,97224.0,97223.0,0.054441]
[1734792213916,0.0025435,97224.0,97223.0,0.003]
[1734792220019,0.001,97224.0,97223.0,0.003]
[1734792222013,0.001,97224.0,97223.0,0.31053659]
[1734792223123,0.001,97224.0,97223.0,0.003]
[1734792225927,0.09196125,97233.0,97223.0,0.003]
[1734792225928,0.09196125,97233.0,97232.0,0.051436]
[1734792226222,0.01186873,97251.0,97250.0,0.051426]
[1734792226426,0.18392251,97255.0,97254.0,0.051424]
[1734792227811,0.0015431,97260.0,97254.0,0.051424]
[1734792227812,0.0015431,97260.0,97259.0,0.051421]
[1734792228014,0.0015431,97260.0,97259.0,0.412221]
[1734792228928,0.0085431,97260.0,97259.0,0.412221]
[1734792229527,0.0125431,97260.0,97259.0,0.412221]
[1734792235728,0.011,97260.0,97259.0,0.412221]
[1734792236933,0.03079,97269.0,97268.0,0.051417]
[1734792237124,0.03079,97269.0,97268.0,0.412217]
[1734792238026,0.03979,97269.0,97268.0,0.413217]
[1734792238232,0.04579,97269.0,97268.0,0.413217]
[1734792240131,0.04579,97269.0,97268.0,0.42376388]
[1734792242737,0.10105565,97300.0,97296.0,0.051402]
[1734792242923,0.05383435,97297.0,97296.0,0.051402]
[1734792244035,0.13713435,97297.0,97269.0,0.2734]
[1734792244238,0.051416,97270.0,97268.0,0.36316]
[1734792244541,0.128,97269.0,97268.0,0.3618]
[1734792244839,0.128,97269.0,97268.0,0.3608]
[1734792245335,0.3608,97281.0,97280.0,0.05141]
[1734792245655,0.3608,97281.0,97269.0,0.051416]
[1734792245656,0.0415,97277.0,97269.0,0.051416]
[1734792245828,0.0415,97277.0,97268.0,0.3608]
[1734792245829,0.051416,97269.0,97268.0,0.3608]
[1734792246140,0.051423,97256.0,97255.0,8.927e-05]
[1734792246437,0.412223,97256.0,97255.0,8.927e-05]
[1734792247642,0.412223,97256.0,97255.0,0.00149777]
[1734792248346,0.42277535,97256.0,97255.0,0.00149777]
[1734792249042,0.42577535,97256.0,97255.0,0.00149777]
[1734792250138,0.43177535,97256.0,97255.0,0.00249777]
[1734792250740,0.43177535,97256.0,97255.0,0.00149777]
[1734792251239,0.43077535,97256.0,97255.0,0.00149777]
[1734792252143,0.37935235,97256.0,97255.0,0.00149777]
[1734792252344,0.008,97256.0,97255.0,0.00149777]
[1734792253639,0.002,97256.0,97255.0,0.00149777]
[1734792253944,0.003,97256.0,97255.0,0.00149777]
[1734792254145,0.004,97256.0,97255.0,0.00149777]
[1734792256352,0.001,97256.0,97255.0,0.00149777]
[1734792256737,0.52470168,97277.0,97276.0,0.051412]
[1734792257551,0.52470168,97277.0,97276.0,0.0528205]
[1734792257746,0.4023,97277.0,97276.0,0.0528205]
[1734792257944,0.42512086,97277.0,97276.0,0.0548205]
[1734792259558,0.47653286,97277.0,97276.0,0.0034085]
[1734792262948,0.42512086,97277.0,97276.0,0.0034085]
[1734792263453,0.38362086,97277.0,97276.0,0.0034085]
[1734792263648,0.012,97277.0,97276.0,0.0034085]
[1734792264252,0.12249781,97280.0,97279.0,0.051411]
[1734792264651,0.12249781,97280.0,97279.0,0.0528195]
[1734792265053,0.051404,97292.0,97290.0,0.051405]
[1734792265251,0.01056196,97295.0,97292.0,0.051404]
[1734792265447,0.4137434,97298.0,97283.0,0.3608]
[1734792265654,0.4137434,97298.0,97293.0,0.051403]
[1734792266065,0.12249781,97297.0,97293.0,0.051403]
[1734792266253,0.12249781,97297.0,97290.0,0.0014085]
[1734792266562,0.12249781,97297.0,97295.0,0.051402]
[1734792266862,0.12249781,97297.0,97296.0,0.0014085]
[1734792267361,0.4304063,97298.0,97296.0,0.0014085]
[1734792267659,0.0636063,97298.0,97295.0,0.052402]
[1734792267864,0.0636063,97298.0,97297.0,0.0014085]
[1734792269375,0.0696063,97298.0,97297.0,0.0014085]
[1734792270278,0.0636063,97298.0,97297.0,0.0024085]
[1734792270475,0.0696063,97298.0,97297.0,0.0034085]
[1734792272479,0.0182053,97298.0,97297.0,0.0034085]
[1734792274687,0.0166629,97298.0,97297.0,0.0034085]
[1734792276583,0.12249781,97303.0,97302.0,0.051399]
[1734792276772,0.12249781,97303.0,97302.0,0.4136075]
[1734792277083,0.15274804,97310.0,97309.0,0.051395]
[1734792277881,0.18392251,97317.0,97316.0,0.051391]
[1734792278677,0.37158467,97323.0,97316.0,0.051391]
[1734792278881,0.37158467,97323.0,97322.0,0.051388]
[1734792279578,0.3608,97323.0,97322.0,0.051388]
[1734792279785,0.051379,97339.0,97330.0,0.051384]
[1734792279976,0.05138,97338.0,97331.0,0.0014085]
[1734792280178,0.37145201,97332.0,97331.0,0.0014085]
[1734792280586,0.01065201,97332.0,97331.0,0.0014085]
[1734792280780,0.05138,97338.0,97331.0,0.0014085]
[1734792280981,0.05138,97338.0,97334.0,0.0014085]
[1734792281287,0.05138,97338.0,97336.0,0.051381]
[1734792281590,0.06176157,97338.0,97336.0,0.051381]
[1734792282086,0.06176157,97338.0,97337.0,0.0014085]
[1734792283486,0.01038157,97338.0,97337.0,0.0537885]
[1734792283692,0.051372,97353.0,97350.0,0.051373]
[1734792283993,0.051369,97359.0,97357.0,0.05137]
[1734792284678,0.0435,97361.0,97352.0,0.051372]
[1734792284880,0.01042262,97361.0,97359.0,0.051368]
[1734792285090,0.3608,97367.0,97361.0,0.051368]
[1734792285285,0.01230416,97364.0,97361.0,0.051368]
[1734792285488,0.01230416,97364.0,97360.0,0.0014085]
[1734792285489,0.00154159,97364.0,97363.0,0.051367]
[1734792286183,0.00154159,97364.0,97363.0,0.0527755]
[1734792286883,0.18392251,97373.0,97372.0,0.051362]
[1734792287199,0.21457626,97384.0,97383.0,0.051356]
[1734792287492,0.051349,97397.0,97383.0,0.3608]
[1734792288183,0.06160452,97397.0,97391.0,0.051351]
[1734792288385,0.06160452,97397.0,97393.0,0.05135]
[1734792288577,0.06160452,97397.0,97390.0,0.0014085]
[1734792288578,0.1,97400.0,97395.0,0.051349]
[1734792288785,0.1,97400.0,97391.0,0.3608]
[1734792288981,0.1,97400.0,97396.0,0.051349]
[1734792289280,0.1102419,97400.0,97398.0,0.0014085]
[1734792289490,0.1615889,97400.0,97398.0,0.0014085]
[1734792289792,0.3608,97399.0,97398.0,0.0014085]
[1734792291182,0.3608,97399.0,97398.0,0.0034085]
[1734792291887,0.3608,97399.0,97398.0,0.0024085]
[1734792292091,0.3608,97399.0,97398.0,0.0034085]
[1734792292695,0.3608,97399.0,97398.0,0.0024085]
[1734792292901,0.3608,97399.0,97398.0,0.0034085]
[1734792295391,0.3608,97399.0,97365.0,0.0467]
[1734792295392,0.05136,97375.0,97365.0,0.0467]
[1734792295723,0.3608,97391.0,97371.0,0.3608]
[1734792296018,0.051355,97385.0,97378.0,0.051359]
[1734792296312,0.051356,97383.0,97378.0,0.051359]
[1734792296499,0.10105565,97390.0,97372.0,0.0899]
[1734792296699,0.051359,97378.0,97372.0,0.0899]
[1734792296899,0.051359,97378.0,97372.0,0.141262]
[1734792297109,0.051361,97374.0,97372.0,0.051362]
[1734792297614,0.001,97375.0,97371.0,0.3618]
[1734792297822,0.051362,97372.0,97371.0,0.3608]
[1734792298415,0.051365,97366.0,97365.0,0.0467]
[1734792298619,0.051368,97361.0,97358.0,0.051369]
[1734792299021,0.051364,97369.0,97354.0,0.00154066]
[1734792299230,0.051363,97371.0,97355.0,0.051371]
[1734792299428,0.051369,97360.0,97355.0,0.051371]
[1734792300323,0.05137,97356.0,97355.0,0.051371]
[1734792300824,0.05137,97356.0,97355.0,0.003]
[1734792301020,0.05137,97356.0,97355.0,0.004]
[1734792301413,0.05137,97356.0,97355.0,0.001]
[1734792303197,0.05137,97356.0,97354.0,0.00154066]
[1734792303398,0.05137,97356.0,97355.0,0.002]
[1734792304198,0.05137,97356.0,97355.0,0.001]
[1734792304595,0.3608,97362.0,97355.0,0.001]
[1734792304804,0.3608,97362.0,97361.0,0.051368]
[1734792305509,0.051345,97404.0,97355.0,0.001]
[1734792305510,0.3608,97386.0,97357.0,0.3608]
[1734792305798,0.05136,97375.0,97372.0,0.051361]
[1734792306205,0.051361,97374.0,97372.0,0.051361]
[1734792307497,0.052361,97374.0,97372.0,0.052361]
[1734792307796,0.053361,97374.0,97372.0,0.052361]
[1734792308497,0.002,97374.0,97372.0,0.052361]
[1734792309906,0.053361,97374.0,97372.0,0.052361]
[1734792310400,0.002,97374.0,97372.0,0.052361]
[1734792310794,0.001,97374.0,97372.0,0.052361]
[1734792311603,0.01071743,97394.0,97383.0,0.051356]
[1734792311804,0.01071743,97394.0,97383.0,0.412156]
[1734792311993,0.097249,97397.0,97383.0,0.412156]
[1734792312796,0.01049132,97395.0,97383.0,0.412156]
[1734792313203,0.00254099,97384.0,97383.0,0.412156]
[1734792313802,0.01050911,97408.0,97383.0,0.73202013]
[1734792314015,0.3608,97415.0,97399.0,0.412148]
[1734792314206,0.05134,97414.0,97399.0,0.412148]
[1734792314411,0.051341,97412.0,97399.0,0.412148]
[1734792314609,0.3608,97415.0,97399.0,0.412148]
[1734792314813,0.051345,97404.0,97399.0,0.051348]
[1734792315315,0.01061484,97410.0,97399.0,0.051348]
[1734792315615,0.01061484,97410.0,97399.0,0.412148]
[1734792316406,0.3608,97415.0,97399.0,0.412148]
[1734792316606,0.3608,97415.0,97412.0,0.051341]
[1734792317216,0.051334,97425.0,97412.0,0.051341]
[1734792317509,0.3608,97427.0,97412.0,0.051341]
[1734792317510,0.37119662,97427.0,97412.0,0.06168739]
[1734792317705,0.3608,97427.0,97426.0,0.051333]
[1734792317904,0.15298422,97437.0,97435.0,0.051328]
[1734792317905,0.01020723,97436.0,97435.0,0.051328]
[1734792318106,0.15298422,97437.0,97435.0,0.051328]
[1734792319008,0.01033698,97450.0,97429.0,0.37102711]
[1734792319219,0.15298422,97459.0,97440.0,0.10105565]
[1734792319405,0.20430022,97459.0,97441.0,0.051325]
[1734792319605,0.051318,97455.0,97440.0,0.10105565]
[1734792319805,0.051319,97454.0,97448.0,0.051321]
[1734792320015,0.00154006,97457.0,97448.0,0.051321]
[1734792321115,0.051319,97453.0,97448.0,0.051321]
[1734792321706,0.051319,97453.0,97440.0,0.11745565]
[1734792321913,0.00154006,97457.0,97450.0,0.05132]
[1734792322116,0.00154006,97457.0,97440.0,0.11745565]
[1734792322416,0.14895565,97480.0,97440.0,0.11745565]
[1734792322417,0.051305,97481.0,97475.0,0.051307]
[1734792322619,0.051305,97481.0,97453.0,0.3608]
[1734792322620,0.3608,97485.0,97477.0,0.051306]
[1734792323211,0.412103,97485.0,97478.0,0.051306]
[1734792323421,0.3608,97485.0,97470.0,0.10105565]
[1734792323628,0.3608,97485.0,97483.0,0.051303]
[1734792324430,0.01028675,97493.0,97483.0,0.051303]
[1734792324611,0.051298,97494.0,97483.0,0.051303]
[1734792324812,0.1,97500.0,97483.0,0.051303]
[1734792325013,0.098195,97499.0,97483.0,0.051303]
[1734792325212,0.10843573,97499.0,97483.0,0.051303]
[1734792325725,0.10843573,97499.0,97483.0,0.052303]
[1734792326314,0.10843573,97499.0,97483.0,0.053303]
[1734792326621,0.10843573,97499.0,97485.0,0.051302]
[1734792326808,0.01024073,97499.0,97491.0,0.051299]
[1734792327122,0.1,97500.0,97483.0,0.002]
[1734792327510,0.1,97500.0,97486.0,0.051302]
[1734792327717,0.11058902,97500.0,97486.0,0.051302]
[1734792328721,0.051303,97484.0,97483.0,0.001]
[1734792328922,0.051312,97467.0,97456.0,0.00153906]
[1734792329109,0.412112,97467.0,97456.0,0.00153906]
[1734792329919,0.412112,97467.0,97466.0,0.00908555]
[1734792330620,0.42270953,97467.0,97466.0,0.00908555]
[1734792331221,0.412112,97467.0,97466.0,0.00908555]
[1734792331418,0.412112,97467.0,97466.0,0.01108555]
[1734792331933,0.412112,97467.0,97423.0,0.0154]
[1734792332220,0.3608,97440.0,97424.0,0.051334]
[1734792332607,0.05133,97433.0,97424.0,0.051334]
[1734792332813,0.051334,97426.0,97415.0,0.2734]
[1734792333008,9.317e-05,97425.0,97416.0,0.051339]
[1734792333311,9.317e-05,97425.0,97420.0,0.05287549]
[1734792333624,9.317e-05,97425.0,97422.0,0.3608]
[1734792333920,9.317e-05,97425.0,97423.0,0.051335]
[1734792335325,9.317e-05,97425.0,97423.0,0.055335]
[1734792335713,9.317e-05,97425.0,97423.0,0.058335]
[1734792335913,0.051324,97444.0,97438.0,0.051327]
[1734792336317,0.051325,97442.0,97429.0,0.051331]
[1734792336528,0.051327,97439.0,97431.0,0.051331]
[1734792336715,0.3608,97444.0,97423.0,0.007]
[1734792336916,0.412124,97444.0,97431.0,0.05133]
[1734792337321,0.412124,97444.0,97423.0,0.007]
[1734792337724,0.3608,97444.0,97432.0,0.05133]
[1734792337919,0.002,97442.0,97432.0,0.05133]
[1734792338420,0.3628,97444.0,97432.0,0.05133]
[1734792338728,0.051326,97441.0,97434.0,0.051329]
[1734792339029,0.002,97442.0,97425.0,0.051334]
[1734792339216,0.05133,97433.0,97425.0,0.051334]
[1734792339416,0.05133,97432.0,97425.0,0.051334]
[1734792339630,0.051332,97428.0,97420.0,0.00153949]
[1734792339823,0.051332,97428.0,97421.0,0.051336]
[1734792340432,0.051335,97423.0,97420.0,0.00153949]
[1734792340620,0.0482,97434.0,97420.0,0.00153949]
[1734792340929,0.051336,97422.0,97420.0,0.00153949]
[1734792341716,0.051336,97422.0,97420.0,0.00553949]
[1734792342323,0.051336,97422.0,97420.0,0.00353949]
[1734792342530,0.051336,97422.0,97420.0,0.00853949]
[1734792343527,0.051336,97422.0,97420.0,0.007]
[1734792344936,0.051344,97406.0,97400.0,8.32e-05]
[1734792345236,0.051346,97402.0,97400.0,8.32e-05]
[1734792347137,0.044,97401.0,97400.0,8.32e-05]
[1734792347433,0.044,97401.0,97400.0,0.0010832]
[1734792347623,0.344,97401.0,97400.0,0.0010832]
[1734792347833,0.051353,97388.0,97387.0,0.3608]
[1734792348331,0.051359,97378.0,97377.0,0.00154029]
[1734792348533,0.05136,97376.0,97375.0,0.18366825]
[1734792348725,0.0514432,97376.0,97375.0,0.18366825]
[1734792348931,0.051369,97360.0,97357.0,0.0469]
[1734792349328,0.05137,97356.0,97355.0,0.18366825]
[1734792350540,0.3608,97358.0,97341.0,0.00154085]
[1734792350541,0.051375,97347.0,97341.0,0.00154085]
[1734792350839,0.412175,97347.0,97341.0,0.00154085]
[1734792351828,0.412175,97347.0,97341.0,0.00554085]
[1734792352239,0.412175,97347.0,97341.0,0.01054085]
[1734792355437,0.15162138,97397.0,97341.0,0.01054085]
[1734792355438,0.3608,97369.0,97346.0,0.3608]
[1734792355634,0.3608,97369.0,97354.0,0.3608]
[1734792355841,0.3608,97369.0,97367.0,0.051364]
[1734792356641,0.3608,97391.0,97375.0,0.05136]
[1734792356843,0.3608,97391.0,97375.0,0.41216]
[1734792358031,0.0030832,97376.0,97375.0,0.41216]
[1734792358238,0.0030832,97376.0,97375.0,0.41916]
[1734792359433,8.32e-05,97376.0,97375.0,0.42816]
[1734792359637,8.32e-05,97376.0,97375.0,0.42716]
[1734792359936,0.3608,97391.0,97390.0,0.051352]
[1734792360641,0.00154086,97398.0,97397.0,0.051349]
[1734792360831,0.3608,97423.0,97396.0,0.3608]
[1734792361137,0.051336,97422.0,97415.0,0.051339]
[1734792361839,0.3608,97423.0,97407.0,0.0154]
[1734792362142,0.3608,97423.0,97408.0,0.2734]
[1734792362336,0.051342,97410.0,97408.0,0.2734]
[1734792363341,0.051342,97410.0,97408.0,0.2744]
[1734792363938,0.054342,97410.0,97408.0,0.2744]
[1734792364139,0.056342,97410.0,97408.0,0.2744]
[1734792364443,0.002,97410.0,97394.0,0.36212]
[1734792364637,0.002,97410.0,97408.0,0.001]
[1734792364638,0.051342,97409.0,97408.0,0.001]
[1734792364941,0.094142,97409.0,97408.0,0.001]
[1734792365940,0.051352,97392.0,97386.0,0.051354]
[1734792366240,0.454942,97409.0,97389.0,0.051353]
[1734792366241,0.3608,97395.0,97389.0,0.051353]
[1734792366443,0.3608,97395.0,97392.0,0.051351]
[1734792367144,0.3608,97395.0,97386.0,0.003]
[1734792367443,0.3608,97395.0,97389.0,0.001]
[1734792367643,0.3628,97395.0,97389.0,0.001]
[1734792368037,0.41415,97395.0,97389.0,0.001]
[1734792368832,0.41415,97395.0,97387.0,0.051354]
[1734792369039,0.051351,97393.0,97392.0,0.001]
[1734792369635,0.051351,97393.0,97387.0,0.051354]
[1734792369835,0.051351,97393.0,97389.0,0.001]
[1734792370548,0.051351,97393.0,97392.0,0.001]
[1734792370944,0.3608,97395.0,97392.0,0.001]
[1734792371156,0.01050842,97414.0,97394.0,0.05135]
[1734792371444,0.3608,97419.0,97404.0,0.3608]
[1734792371637,0.3608,97419.0,97411.0,0.051341]
[1734792371943,0.01048965,97417.0,97411.0,0.051341]
[1734792372245,0.3608,97419.0,97414.0,0.05134]
[1734792372439,0.3608,97419.0,97418.0,0.051338]
[1734792372634,0.10215405,97426.0,97405.0,0.0911]
[1734792372635,0.09163104,97426.0,97421.0,0.051336]
[1734792372833,0.051336,97422.0,97413.0,0.3608]
[1734792373042,0.051336,97422.0,97416.0,0.051338]
[1734792373241,0.051336,97422.0,97413.0,0.3608]
[1734792373545,0.051336,97422.0,97419.0,0.051337]
[1734792373742,0.051336,97422.0,97421.0,0.001]
[1734792374342,0.051336,97422.0,97404.0,0.01045838]
[1734792374343,0.051344,97406.0,97404.0,0.01045838]
[1734792374548,0.051345,97404.0,97399.0,0.18366825]
[1734792374750,0.051346,97403.0,97399.0,0.18366825]
[1734792374939,0.051342,97411.0,97399.0,0.18366825]
[1734792375544,0.3608,97412.0,97403.0,0.051346]
[1734792375739,0.051344,97407.0,97403.0,0.051346]
[1734792376544,0.051342,97411.0,97393.0,0.3608]
[1734792376749,0.15162138,97410.0,97393.0,0.3608]
[1734792376942,0.051347,97400.0,97393.0,0.3608]
[1734792377257,0.051347,97400.0,97392.0,0.051351]
[1734792377747,0.051349,97396.0,97392.0,0.051351]
[1734792377951,0.051349,97396.0,97393.0,0.001]
[1734792378340,0.3608,97404.0,97392.0,0.051351]
[1734792378648,0.051351,97393.0,97392.0,0.003]
[1734792380542,0.051351,97393.0,97392.0,0.001]
[1734792381058,0.09163104,97418.0,97411.0,0.051341]
[1734792381059,0.3608,97415.0,97411.0,0.051341]
[1734792381350,0.3608,97415.0,97413.0,0.05134]
[1734792381650,0.09163104,97418.0,97414.0,0.05134]
[1734792381855,0.051337,97419.0,97414.0,0.05134]
[1734792382042,0.051338,97419.0,97402.0,0.051346]
[1734792382354,0.051341,97412.0,97401.0,0.3608]
[1734792383152,0.051343,97408.0,97401.0,0.412146]
[1734792383339,0.3608,97423.0,97401.0,0.412146]
[1734792383541,0.051345,97404.0,97401.0,0.412146]
[1734792383742,0.051346,97403.0,97401.0,0.412146]
[1734792384241,0.051346,97403.0,97401.0,0.413146]
[1734792384465,0.051346,97403.0,97401.0,0.3618]
[1734792384650,0.051346,97403.0,97401.0,0.001]
[1734792384844,0.051347,97400.0,97397.0,0.18366825]
[1734792385651,0.051352,97391.0,97389.0,0.54446825]
[1734792385858,0.051352,97391.0,97389.0,0.18366825]
[1734792386442,0.051352,97391.0,97389.0,0.23502125]
[1734792387044,0.50378004,97398.0,97392.0,0.051351]
[1734792387750,0.50378004,97398.0,97396.0,0.051349]
[1734792387751,0.09163104,97398.0,97396.0,0.051349]
[1734792388442,0.12173377,97403.0,97397.0,0.043]
[1734792388647,0.09203306,97408.0,97407.0,0.051343]
[1734792389653,0.3608,97419.0,97406.0,0.3608]
[1734792389847,0.3608,97419.0,97418.0,0.051338]
[1734792391158,0.3618,97419.0,97418.0,0.052338]
[1734792391859,0.3638,97419.0,97418.0,0.052338]
[1734792392356,0.003,97419.0,97418.0,0.001]
[1734792393454,0.01357336,97419.0,97418.0,0.001]
[1734792393657,0.003,97419.0,97418.0,0.001]
[1734792394351,0.003,97419.0,97418.0,0.052338]
[1734792399872,0.003,97419.0,97418.0,0.413138]
[1734792401956,0.003,97419.0,97418.0,0.42348236]
[1734792402859,0.003,97419.0,97418.0,0.46898236]
[1734792405064,0.003,97419.0,97418.0,0.76898236]
[1734792405568,0.15298422,97447.0,97446.0,0.051323]
[1734792406976,0.002,97447.0,97446.0,0.052323]
[1734792407173,0.003,97447.0,97446.0,0.053323]
[1734792407464,0.001,97447.0,97446.0,0.052323]
[1734792407669,0.003,97447.0,97446.0,0.052323]
[1734792409158,0.003,97447.0,97446.0,0.0625499]
[1734792409766,0.15298422,97465.0,97446.0,0.0266269]
[1734792409969,0.15298422,97465.0,97464.0,0.051313]
[1734792410256,0.15298422,97465.0,97464.0,0.412113]
[1734792410864,0.0455,97472.0,97464.0,0.3608]
[1734792411059,0.0455,97472.0,97470.0,0.05131]
[1734792413976,0.051302,97486.0,97465.0,0.01025183]
[1734792413977,0.3608,97497.0,97488.0,0.0513]
[1734792414366,0.0921,97499.0,97490.0,0.0513]
[1734792415276,0.15298422,97503.0,97489.0,0.3608]
[1734792415577,0.15298422,97503.0,97499.0,0.051295]
[1734792417078,0.00153902,97511.0,97499.0,0.052295]
[1734792417466,0.3608,97510.0,97499.0,0.052295]
[1734792417866,0.3608,97510.0,97499.0,0.001]
[1734792418281,0.37113471,97510.0,97499.0,0.052295]
[1734792418982,0.41693471,97510.0,97499.0,0.052295]
[1734792419480,0.05129,97509.0,97499.0,0.052295]
[1734792420070,0.051292,97506.0,97499.0,0.001]
[1734792420270,0.051292,97506.0,97499.0,0.052295]
[1734792420477,0.0449,97505.0,97499.0,0.052295]
[1734792421985,0.3608,97510.0,97499.0,0.052295]
[1734792422677,0.3608,97510.0,97499.0,0.051295]
[1734792423277,0.00153902,97511.0,97499.0,0.414095]
[1734792423580,0.0449,97526.0,97499.0,0.69875433]
[1734792424681,0.051282,97524.0,97499.0,0.69875433]
[1734792425587,0.0449,97526.0,97499.0,0.69875433]
[1734792426088,0.0449,97526.0,97525.0,0.051281]
[1734792427479,0.0449,97526.0,97515.0,0.01023856]
[1734792427480,0.0449,97526.0,97517.0,0.051285]
[1734792427679,0.0449,97526.0,97519.0,0.051284]
[1734792427882,0.0449,97526.0,97510.0,0.15158394]
[1734792428078,0.0449,97526.0,97521.0,0.051283]
[1734792428280,0.0449,97526.0,97525.0,0.001]
[1734792428678,0.0449,97526.0,97521.0,0.051283]
[1734792428875,0.051284,97520.0,97519.0,0.001]
[1734792429079,0.3608,97520.0,97490.0,0.15158394]
[1734792429277,0.3608,97520.0,97517.0,0.051286]
[1734792429493,0.3608,97520.0,97518.0,0.051285]
[1734792429981,0.3608,97520.0,97519.0,0.001]
[1734792430290,0.3608,97520.0,97501.0,0.00153826]
[1734792430581,0.051293,97503.0,97501.0,0.00153826]
[1734792430787,0.051295,97499.0,97490.0,0.051299]
[1734792430990,0.051296,97497.0,97490.0,0.051299]
[1734792431286,0.3608,97498.0,97490.0,0.051299]
[1734792431580,0.3608,97498.0,97479.0,0.00153867]
[1734792431581,0.051302,97486.0,97479.0,0.00153867]
[1734792431789,0.3608,97489.0,97486.0,0.051301]
[1734792432371,0.3608,97489.0,97479.0,0.00153867]
[1734792432372,0.051305,97481.0,97479.0,0.00153867]
[1734792433075,0.0479,97480.0,97479.0,0.00153867]
[1734792433679,0.3608,97489.0,97488.0,0.051301]
[1734792434288,0.15298422,97512.0,97486.0,0.007]
[1734792434486,0.051291,97506.0,97497.0,0.3608]
[1734792434676,0.051293,97503.0,97497.0,0.3608]
[1734792434883,0.051297,97495.0,97493.0,0.051298]
[1734792435081,0.10101851,97500.0,97488.0,0.006]
[1734792435286,0.0513,97490.0,97488.0,0.006]
[1734792435479,0.051301,97488.0,97486.0,0.051302]
[1734792435680,0.051302,97486.0,97485.0,0.3608]
[1734792435885,0.051303,97485.0,97480.0,0.051305]
[1734792436387,0.051305,97481.0,97479.0,0.00153867]
[1734792436883,0.0461,97484.0,97482.0,0.051304]
[1734792437087,0.3608,97486.0,97479.0,0.00153867]
[1734792437279,0.3608,97486.0,97485.0,0.051302]
[1734792437890,0.3608,97494.0,97493.0,0.051298]
[1734792439086,0.3608,97494.0,97493.0,0.058298]
[1734792439484,0.3608,97494.0,97493.0,0.007]
[1734792441782,0.3608,97494.0,97479.0,0.36233867]
[1734792441783,0.051305,97480.0,97479.0,0.00153867]
[1734792443082,0.051305,97480.0,97479.0,0.00753867]
[1734792443981,0.051305,97480.0,97479.0,0.01653867]
[1734792444687,0.051316,97460.0,97453.0,0.18399386]
[1734792444879,0.051316,97460.0,97454.0,0.18399386]
[1734792445684,0.05140504,97460.0,97454.0,0.23531186]
[1734792445985,0.05140504,97460.0,97459.0,0.3698]
[1734792446284,0.05140504,97460.0,97459.0,0.009]
[1734792447183,0.05940504,97460.0,97459.0,0.01]
[1734792447583,0.06040504,97460.0,97459.0,0.01]
[1734792448379,0.06040504,97460.0,97459.0,0.001]
[1734792448585,0.01208904,97460.0,97459.0,0.001]
[1734792448795,0.01108904,97460.0,97459.0,0.001]